[Event "Titled Tuesday Blitz August 17 2021"]
[White "Jaracz, Pawel"]
[Black "Ibarra Jerez, Jose Carlos"]
[WhiteFideId "1102222"]
[BlackFideId "2226332"]
[WhiteElo "2495"]
[BlackElo "2602"]
[Result "1-0"]
[Round "03"]
[TimeControl "180+1"]
[Date "2021.08.17"]
[WhiteClock "0:00:19"]
[BlackClock "0:00:02"]

1. e4 {[%clk 0:03:00]}  c5 {[%clk 0:02:58]} 2. Nf3 {[%clk 0:03:00]}  Nc6 {[%clk 0:02:57]} 3. d4 {[%clk 0:02:58]}  cxd4 {[%clk 0:02:57]} 4. Nxd4 {[%clk 0:02:58]}  Qb6 {[%clk 0:02:56]} 5. Nb3 {[%clk 0:02:57]}  Nf6 {[%clk 0:02:55]} 6. Nc3 {[%clk 0:02:56]}  e6 {[%clk 0:02:55]} 7. Bd3 {[%clk 0:02:51]}  Be7 {[%clk 0:02:49]} 8. O-O {[%clk 0:02:51]}  a6 {[%clk 0:02:47]} 9. Kh1 {[%clk 0:02:51]}  Qc7 {[%clk 0:02:43]} 10. Bg5 {[%clk 0:02:47]}  d6 {[%clk 0:02:30]} 11. f4 {[%clk 0:02:33]}  h6 {[%clk 0:02:29]} 12. Bh4 {[%clk 0:02:08]}  Nxe4 {[%clk 0:02:13]} 13. Bxe7 {[%clk 0:02:07]}  Nxc3 {[%clk 0:02:13]} 14. Qg4 {[%clk 0:02:08]}  Nxe7 {[%clk 0:02:03]} 15. Qxg7 {[%clk 0:02:08]}  Rg8 {[%clk 0:02:03]} 16. Qxc3 {[%clk 0:02:08]}  Qxc3 {[%clk 0:01:58]} 17. bxc3 {[%clk 0:02:09]}  Bd7 {[%clk 0:01:48]} 18. Na5 {[%clk 0:01:59]}  Nd5 {[%clk 0:01:05]} 19. Nxb7 {[%clk 0:01:50]}  Ke7 {[%clk 0:01:00]} 20. Na5 {[%clk 0:01:37]}  Nxc3 {[%clk 0:00:55]} 21. f5 {[%clk 0:01:36]}  d5 {[%clk 0:00:45]} 22. Rf3 {[%clk 0:01:16]}  e5 {[%clk 0:00:38]} 23. f6+ {[%clk 0:01:15]}  Kd6 {[%clk 0:00:38]} 24. Bh7 {[%clk 0:01:10]}  d4 {[%clk 0:00:15]} 25. Bxg8 {[%clk 0:01:09]}  Rxg8 {[%clk 0:00:16]} 26. Nc4+ {[%clk 0:01:07]}  Kd5 {[%clk 0:00:15]} 27. Nb6+ {[%clk 0:01:07]}  Kc6 {[%clk 0:00:15]} 28. Nxd7 {[%clk 0:01:07]}  Kxd7 {[%clk 0:00:16]} 29. Re1 {[%clk 0:01:07]}  Kd6 {[%clk 0:00:15]} 30. Rf5 {[%clk 0:00:59]}  Re8 {[%clk 0:00:14]} 31. g4 {[%clk 0:00:48]}  e4 {[%clk 0:00:13]} 32. Kg2 {[%clk 0:00:43]}  Rb8 {[%clk 0:00:12]} 33. h4 {[%clk 0:00:25]}  Rb2 {[%clk 0:00:12]} 34. g5 {[%clk 0:00:24]}  Rxc2+ {[%clk 0:00:12]} 35. Rf2 {[%clk 0:00:24]}  Rxf2+ {[%clk 0:00:10]} 36. Kxf2 {[%clk 0:00:25]}  hxg5 {[%clk 0:00:09]} 37. h5 {[%clk 0:00:25]}  Ke6 {[%clk 0:00:09]} 38. h6 {[%clk 0:00:22]}  Kxf6 {[%clk 0:00:05]} 39. Rh1 {[%clk 0:00:23]}  e3+ {[%clk 0:00:04]} 40. Kf3 {[%clk 0:00:23]}  g4+ {[%clk 0:00:04]} 41. Kxg4 {[%clk 0:00:22]}  Kg6 {[%clk 0:00:02]} 42. h7 {[%clk 0:00:22]}  f5+ {[%clk 0:00:03]} 43. Kf4 {[%clk 0:00:20]}  Ne2+ {[%clk 0:00:02]} 44. Ke5 {[%clk 0:00:19]} 1-0


[Site "https://www.chess.com"]

[Event "Titled Tuesday Blitz August 17 2021"]
[White "Kamsky, Gata"]
[Black "Quintiliano Pinto, Renato R."]
[WhiteFideId "2000024"]
[BlackFideId "2117568"]
[WhiteElo "2644"]
[BlackElo "2439"]
[Result "1-0"]
[Round "03"]
[TimeControl "180+1"]
[Date "2021.08.17"]
[WhiteClock "0:00:39"]
[BlackClock "0:00:05"]

1. d4 {[%clk 0:03:00]}  d5 {[%clk 0:02:57]} 2. Bf4 {[%clk 0:03:01]}  Nf6 {[%clk 0:02:52]} 3. e3 {[%clk 0:03:01]}  c5 {[%clk 0:02:51]} 4. c3 {[%clk 0:03:01]}  Nc6 {[%clk 0:02:51]} 5. Nd2 {[%clk 0:03:01]}  cxd4 {[%clk 0:02:45]} 6. exd4 {[%clk 0:03:01]}  Bf5 {[%clk 0:02:45]} 7. Ngf3 {[%clk 0:02:59]}  e6 {[%clk 0:02:45]} 8. Be2 {[%clk 0:02:51]}  Bd6 {[%clk 0:02:41]} 9. Bg3 {[%clk 0:02:47]}  O-O {[%clk 0:02:40]} 10. O-O {[%clk 0:02:47]}  h6 {[%clk 0:02:39]} 11. a4 {[%clk 0:02:46]}  a6 {[%clk 0:02:31]} 12. Re1 {[%clk 0:02:44]}  Ne4 {[%clk 0:02:28]} 13. Nxe4 {[%clk 0:02:43]}  Bxe4 {[%clk 0:02:29]} 14. Nd2 {[%clk 0:02:41]}  Bg6 {[%clk 0:02:27]} 15. Bxd6 {[%clk 0:02:39]}  Qxd6 {[%clk 0:02:28]} 16. Qb3 {[%clk 0:02:38]}  Rab8 {[%clk 0:02:26]} 17. Bf1 {[%clk 0:02:31]}  Qc7 {[%clk 0:02:09]} 18. Qa3 {[%clk 0:02:28]}  Rfc8 {[%clk 0:02:03]} 19. Nb3 {[%clk 0:02:23]}  e5 {[%clk 0:01:23]} 20. dxe5 {[%clk 0:02:22]}  Nxe5 {[%clk 0:01:23]} 21. Nd4 {[%clk 0:02:21]}  Re8 {[%clk 0:01:01]} 22. Qb3 {[%clk 0:01:58]}  Ng4 {[%clk 0:00:41]} 23. g3 {[%clk 0:01:57]}  Rxe1 {[%clk 0:00:41]} 24. Rxe1 {[%clk 0:01:56]}  Rd8 {[%clk 0:00:42]} 25. Bg2 {[%clk 0:01:43]}  Nf6 {[%clk 0:00:41]} 26. f3 {[%clk 0:01:34]}  h5 {[%clk 0:00:32]} 27. Qb4 {[%clk 0:01:32]}  Re8 {[%clk 0:00:16]} 28. Rxe8+ {[%clk 0:01:29]}  Nxe8 {[%clk 0:00:17]} 29. Bf1 {[%clk 0:01:14]}  Nf6 {[%clk 0:00:16]} 30. Nb3 {[%clk 0:01:06]}  Bf5 {[%clk 0:00:12]} 31. Qc5 {[%clk 0:01:01]}  Qd8 {[%clk 0:00:11]} 32. Nd4 {[%clk 0:00:57]}  Bc8 {[%clk 0:00:11]} 33. a5 {[%clk 0:00:55]}  Qe8 {[%clk 0:00:12]} 34. Kf2 {[%clk 0:00:54]}  g6 {[%clk 0:00:09]} 35. Qd6 {[%clk 0:00:53]}  Kg7 {[%clk 0:00:09]} 36. b3 {[%clk 0:00:52]}  Bd7 {[%clk 0:00:08]} 37. Qc7 {[%clk 0:00:45]}  Bc8 {[%clk 0:00:08]} 38. Bd3 {[%clk 0:00:44]}  h4 {[%clk 0:00:08]} 39. gxh4 {[%clk 0:00:42]}  Qh8 {[%clk 0:00:07]} 40. Qf4 {[%clk 0:00:41]}  Qd8 {[%clk 0:00:07]} 41. b4 {[%clk 0:00:42]}  Qd7 {[%clk 0:00:06]} 42. Qe5 {[%clk 0:00:40]}  Qh3 {[%clk 0:00:05]} 43. h5 {[%clk 0:00:40]}  Qh4+ {[%clk 0:00:04]} 44. Ke2 {[%clk 0:00:39]}  gxh5 {[%clk 0:00:04]} 45. Qg3+ {[%clk 0:00:39]}  Qxg3 {[%clk 0:00:04]} 46. hxg3 {[%clk 0:00:39]}  Ne8 {[%clk 0:00:04]} 47. Ke3 {[%clk 0:00:39]}  Nd6 {[%clk 0:00:04]} 48. Ne2 {[%clk 0:00:39]}  Kf6 {[%clk 0:00:05]} 49. Nf4 {[%clk 0:00:39]}  Ke5 {[%clk 0:00:05]} 50. Nxh5 {[%clk 0:00:39]}  Bf5 {[%clk 0:00:05]} 51. f4+ {[%clk 0:00:39]} 1-0


[Site "https://www.chess.com"]

[Event "Titled Tuesday Blitz August 17 2021"]
[White "Khodzhamkuliev, Bahadur"]
[Black "Costachi, Mihnea"]
[WhiteFideId "24135046"]
[BlackFideId "1217518"]
[WhiteElo "2130"]
[BlackElo "2482"]
[Result "1-0"]
[Round "03"]
[TimeControl "180+1"]
[Date "2021.08.17"]
[WhiteClock "0:01:14"]
[BlackClock "0:01:58"]

1. Nf3 {[%clk 0:02:55]}  c5 {[%clk 0:03:00]} 2. c3 {[%clk 0:02:54]}  d5 {[%clk 0:03:00]} 3. d4 {[%clk 0:02:51]}  cxd4 {[%clk 0:03:01]} 4. cxd4 {[%clk 0:02:52]}  Nc6 {[%clk 0:03:01]} 5. Nc3 {[%clk 0:02:52]}  Nf6 {[%clk 0:03:02]} 6. Bf4 {[%clk 0:02:51]}  Bf5 {[%clk 0:03:03]} 7. e3 {[%clk 0:02:52]}  e6 {[%clk 0:03:03]} 8. Bb5 {[%clk 0:02:52]}  Bd6 {[%clk 0:03:02]} 9. Bxc6+ {[%clk 0:02:51]}  bxc6 {[%clk 0:03:02]} 10. Ne5 {[%clk 0:02:51]}  Bxe5 {[%clk 0:03:01]} 11. Bxe5 {[%clk 0:02:51]}  Nd7 {[%clk 0:03:01]} 12. Bd6 {[%clk 0:02:46]}  Qb6 {[%clk 0:03:01]} 13. O-O {[%clk 0:02:45]}  Qxb2 {[%clk 0:02:50]} 14. Rc1 {[%clk 0:02:33]}  f6 {[%clk 0:02:42]} 15. f3 {[%clk 0:02:18]}  Kf7 {[%clk 0:02:41]} 16. e4 {[%clk 0:02:18]}  Bg6 {[%clk 0:02:42]} 17. Na4 {[%clk 0:02:06]}  Qb5 {[%clk 0:02:41]} 18. Nc5 {[%clk 0:02:03]}  Nxc5 {[%clk 0:02:41]} 19. Rxc5 {[%clk 0:02:04]}  Qa6 {[%clk 0:02:37]} 20. e5 {[%clk 0:02:00]}  fxe5 {[%clk 0:02:34]} 21. Bxe5 {[%clk 0:01:55]}  Rhe8 {[%clk 0:02:29]} 22. Qc1 {[%clk 0:01:53]}  Rac8 {[%clk 0:02:29]} 23. h4 {[%clk 0:01:41]}  h6 {[%clk 0:02:14]} 24. Qf4+ {[%clk 0:01:37]}  Kg8 {[%clk 0:02:14]} 25. Qg4 {[%clk 0:01:36]}  Qd3 {[%clk 0:02:04]} 26. h5 {[%clk 0:01:34]}  Kh7 {[%clk 0:02:05]} 27. Qxg6+ {[%clk 0:01:33]}  Qxg6 {[%clk 0:02:05]} 28. hxg6+ {[%clk 0:01:33]}  Kxg6 {[%clk 0:02:06]} 29. Rfc1 {[%clk 0:01:34]}  Re7 {[%clk 0:02:04]} 30. Rxc6 {[%clk 0:01:34]}  Rxc6 {[%clk 0:02:05]} 31. Rxc6 {[%clk 0:01:34]}  Rb7 {[%clk 0:02:05]} 32. Rc7 {[%clk 0:01:32]}  Rb2 {[%clk 0:02:03]} 33. Rxg7+ {[%clk 0:01:31]}  Kh5 {[%clk 0:02:03]} 34. Rxa7 {[%clk 0:01:24]}  Kh4 {[%clk 0:02:00]} 35. Kh2 {[%clk 0:01:23]}  Kh5 {[%clk 0:01:59]} 36. Rg7 {[%clk 0:01:22]}  Kh4 {[%clk 0:01:59]} 37. Bf6+ {[%clk 0:01:18]}  Kh5 {[%clk 0:01:59]} 38. Kh3 {[%clk 0:01:16]}  Rxg2 {[%clk 0:01:56]} 39. Rxg2 {[%clk 0:01:12]}  e5 {[%clk 0:01:56]} 40. dxe5 {[%clk 0:01:13]}  d4 {[%clk 0:01:56]} 41. e6 {[%clk 0:01:13]}  d3 {[%clk 0:01:57]} 42. e7 {[%clk 0:01:14]}  d2 {[%clk 0:01:58]} 43. e8=Q# {[%clk 0:01:14]} 1-0


[Site "https://www.chess.com"]

[Event "Titled Tuesday Blitz August 17 2021"]
[White "Koellner, Ruben Gideon"]
[Black "Tristan, Leonardo"]
[WhiteFideId "12993093"]
[BlackFideId "113816"]
[WhiteElo "2503"]
[BlackElo "2404"]
[Result "0-1"]
[Round "03"]
[TimeControl "180+1"]
[Date "2021.08.17"]
[WhiteClock "0:00:01"]
[BlackClock "0:00:08"]

1. d4 {[%clk 0:03:00]}  d5 {[%clk 0:03:00]} 2. Bf4 {[%clk 0:03:00]}  Nf6 {[%clk 0:03:00]} 3. e3 {[%clk 0:03:00]}  e6 {[%clk 0:03:00]} 4. Nd2 {[%clk 0:02:59]}  Bd6 {[%clk 0:03:01]} 5. Bg3 {[%clk 0:02:59]}  O-O {[%clk 0:03:01]} 6. Bd3 {[%clk 0:02:59]}  c5 {[%clk 0:03:01]} 7. c3 {[%clk 0:02:59]}  Qc7 {[%clk 0:03:01]} 8. Bxd6 {[%clk 0:02:55]}  Qxd6 {[%clk 0:03:01]} 9. f4 {[%clk 0:02:56]}  cxd4 {[%clk 0:02:55]} 10. cxd4 {[%clk 0:02:55]}  Nc6 {[%clk 0:02:55]} 11. a3 {[%clk 0:02:53]}  Ne7 {[%clk 0:02:55]} 12. Ngf3 {[%clk 0:02:52]}  Ng4 {[%clk 0:02:56]} 13. Qe2 {[%clk 0:02:48]}  Nf5 {[%clk 0:02:45]} 14. Bxf5 {[%clk 0:02:39]}  exf5 {[%clk 0:02:46]} 15. h3 {[%clk 0:02:39]}  Nf6 {[%clk 0:02:42]} 16. O-O {[%clk 0:02:38]}  Bd7 {[%clk 0:02:38]} 17. Rac1 {[%clk 0:02:36]}  Rfc8 {[%clk 0:02:36]} 18. Ne5 {[%clk 0:02:33]}  Be8 {[%clk 0:02:35]} 19. Qd3 {[%clk 0:02:25]}  Ne4 {[%clk 0:02:35]} 20. Nxe4 {[%clk 0:02:12]}  fxe4 {[%clk 0:02:34]} 21. Qb3 {[%clk 0:02:13]}  h5 {[%clk 0:01:39]} 22. Rxc8 {[%clk 0:01:09]}  Rxc8 {[%clk 0:01:39]} 23. Qxb7 {[%clk 0:01:09]}  Rb8 {[%clk 0:01:18]} 24. Qxa7 {[%clk 0:01:09]}  f6 {[%clk 0:01:19]} 25. b4 {[%clk 0:00:55]}  fxe5 {[%clk 0:01:01]} 26. fxe5 {[%clk 0:00:56]}  Qb6 {[%clk 0:01:01]} 27. Qe7 {[%clk 0:00:48]}  Bg6 {[%clk 0:01:01]} 28. Rc1 {[%clk 0:00:33]}  Re8 {[%clk 0:00:58]} 29. Qd7 {[%clk 0:00:28]}  Qe6 {[%clk 0:00:58]} 30. Qb7 {[%clk 0:00:17]}  Rf8 {[%clk 0:00:44]} 31. Rc7 {[%clk 0:00:15]}  Bf7 {[%clk 0:00:45]} 32. a4 {[%clk 0:00:13]}  Qh6 {[%clk 0:00:37]} 33. Rc3 {[%clk 0:00:06]}  Qg5 {[%clk 0:00:29]} 34. a5 {[%clk 0:00:05]}  Be6 {[%clk 0:00:29]} 35. Qb6 {[%clk 0:00:03]}  Bxh3 {[%clk 0:00:28]} 36. Rc2 {[%clk 0:00:03]}  Qxe3+ {[%clk 0:00:28]} 37. Kh2 {[%clk 0:00:03]}  Bg4 {[%clk 0:00:14]} 38. Qc5 {[%clk 0:00:03]}  Qf4+ {[%clk 0:00:13]} 39. Kg1 {[%clk 0:00:03]}  e3 {[%clk 0:00:13]} 40. Qc3 {[%clk 0:00:03]}  e2 {[%clk 0:00:11]} 41. Rc1 {[%clk 0:00:03]}  Qf1+ {[%clk 0:00:09]} 42. Kh2 {[%clk 0:00:02]}  Rf2 {[%clk 0:00:08]} 43. Qe3 {[%clk 0:00:01]}  Qxg2# {[%clk 0:00:08]} 0-1


[Site "https://www.chess.com"]

[Event "Titled Tuesday Blitz August 17 2021"]
[White "Kravtsiv, Martyn"]
[Black "Le, Tuan Minh"]
[WhiteFideId "14113147"]
[BlackFideId "12401153"]
[WhiteElo "2680"]
[BlackElo "2450"]
[Result "0-1"]
[Round "03"]
[TimeControl "180+1"]
[Date "2021.08.17"]
[WhiteClock "0:00:03"]
[BlackClock "0:00:14"]

1. e4 {[%clk 0:03:00]}  c5 {[%clk 0:03:00]} 2. Nf3 {[%clk 0:02:59]}  Nf6 {[%clk 0:03:00]} 3. Nc3 {[%clk 0:02:58]}  d5 {[%clk 0:03:01]} 4. Bb5+ {[%clk 0:02:56]}  Bd7 {[%clk 0:03:00]} 5. Bxd7+ {[%clk 0:02:41]}  Qxd7 {[%clk 0:03:01]} 6. e5 {[%clk 0:02:39]}  Ng8 {[%clk 0:03:00]} 7. d4 {[%clk 0:02:37]}  e6 {[%clk 0:02:59]} 8. Be3 {[%clk 0:02:32]}  cxd4 {[%clk 0:02:59]} 9. Nxd4 {[%clk 0:02:32]}  Nc6 {[%clk 0:02:59]} 10. f4 {[%clk 0:02:25]}  Nge7 {[%clk 0:02:59]} 11. O-O {[%clk 0:02:24]}  Nxd4 {[%clk 0:02:38]} 12. Bxd4 {[%clk 0:02:23]}  Nf5 {[%clk 0:02:39]} 13. Bf2 {[%clk 0:02:23]}  h5 {[%clk 0:02:39]} 14. Qd3 {[%clk 0:02:17]}  Rc8 {[%clk 0:02:37]} 15. Rad1 {[%clk 0:02:06]}  g6 {[%clk 0:02:35]} 16. Ne4 {[%clk 0:02:01]}  Be7 {[%clk 0:02:31]} 17. Nf6+ {[%clk 0:01:48]}  Bxf6 {[%clk 0:02:31]} 18. exf6 {[%clk 0:01:49]}  a6 {[%clk 0:01:56]} 19. g3 {[%clk 0:00:51]}  O-O {[%clk 0:01:25]} 20. h3 {[%clk 0:00:44]}  Qb5 {[%clk 0:01:11]} 21. Qxb5 {[%clk 0:00:39]}  axb5 {[%clk 0:01:12]} 22. c3 {[%clk 0:00:39]}  Rc4 {[%clk 0:01:11]} 23. a3 {[%clk 0:00:32]}  Rfc8 {[%clk 0:01:08]} 24. Rfe1 {[%clk 0:00:25]}  Kh7 {[%clk 0:00:49]} 25. Kg2 {[%clk 0:00:24]}  Nd6 {[%clk 0:00:49]} 26. Bd4 {[%clk 0:00:23]}  Ne4 {[%clk 0:00:47]} 27. Kf3 {[%clk 0:00:22]}  g5 {[%clk 0:00:45]} 28. fxg5 {[%clk 0:00:21]}  Nxg5+ {[%clk 0:00:43]} 29. Kg2 {[%clk 0:00:17]}  Kg6 {[%clk 0:00:33]} 30. Rf1 {[%clk 0:00:14]}  Re8 {[%clk 0:00:31]} 31. Rde1 {[%clk 0:00:15]}  Ne4 {[%clk 0:00:31]} 32. Be5 {[%clk 0:00:14]}  Nc5 {[%clk 0:00:29]} 33. Re3 {[%clk 0:00:14]}  Re4 {[%clk 0:00:27]} 34. Rxe4 {[%clk 0:00:14]}  Nxe4 {[%clk 0:00:20]} 35. Rf4 {[%clk 0:00:13]}  Nc5 {[%clk 0:00:20]} 36. Rf3 {[%clk 0:00:12]}  Nd7 {[%clk 0:00:20]} 37. Bd4 {[%clk 0:00:07]}  e5 {[%clk 0:00:20]} 38. Re3 {[%clk 0:00:07]}  Kxf6 {[%clk 0:00:19]} 39. Re2 {[%clk 0:00:07]}  Kg6 {[%clk 0:00:19]} 40. Bf2 {[%clk 0:00:07]}  Kf5 {[%clk 0:00:15]} 41. Rd2 {[%clk 0:00:07]}  Ke6 {[%clk 0:00:16]} 42. Rd1 {[%clk 0:00:07]}  Nf6 {[%clk 0:00:16]} 43. Kf3 {[%clk 0:00:08]}  Ne4 {[%clk 0:00:16]} 44. Be1 {[%clk 0:00:08]}  f5 {[%clk 0:00:16]} 45. Ra1 {[%clk 0:00:07]}  Ra8 {[%clk 0:00:15]} 46. b3 {[%clk 0:00:07]}  Nc5 {[%clk 0:00:16]} 47. b4 {[%clk 0:00:05]}  Ne4 {[%clk 0:00:15]} 48. Ra2 {[%clk 0:00:04]}  Nd6 {[%clk 0:00:15]} 49. Re2 {[%clk 0:00:03]}  Rxa3 {[%clk 0:00:14]} 0-1


[Site "https://www.chess.com"]

[Event "Titled Tuesday Blitz August 17 2021"]
[White "Kvon, Andrey"]
[Black "Svane, Rasmus"]
[WhiteFideId "14201356"]
[BlackFideId "4657101"]
[WhiteElo "2458"]
[BlackElo "2669"]
[Result "0-1"]
[Round "03"]
[TimeControl "180+1"]
[Date "2021.08.17"]
[WhiteClock "0:00:33"]
[BlackClock "0:01:32"]

1. e4 {[%clk 0:03:00]}  c6 {[%clk 0:02:59]} 2. d3 {[%clk 0:02:59]}  d5 {[%clk 0:03:00]} 3. Nd2 {[%clk 0:02:59]}  e5 {[%clk 0:03:00]} 4. Ngf3 {[%clk 0:02:59]}  Bd6 {[%clk 0:03:01]} 5. d4 {[%clk 0:02:58]}  exd4 {[%clk 0:03:02]} 6. Nxd4 {[%clk 0:02:56]}  Nf6 {[%clk 0:02:51]} 7. exd5 {[%clk 0:02:56]}  Nxd5 {[%clk 0:02:49]} 8. Qe2+ {[%clk 0:02:56]}  Be7 {[%clk 0:02:47]} 9. Ne4 {[%clk 0:02:38]}  O-O {[%clk 0:02:47]} 10. Bd2 {[%clk 0:02:33]}  Qb6 {[%clk 0:02:46]} 11. Nb3 {[%clk 0:02:17]}  a5 {[%clk 0:02:46]} 12. a4 {[%clk 0:02:16]}  Bf5 {[%clk 0:02:38]} 13. O-O-O {[%clk 0:02:13]}  Nd7 {[%clk 0:02:36]} 14. Ng3 {[%clk 0:02:11]}  Be6 {[%clk 0:02:23]} 15. Kb1 {[%clk 0:01:54]}  Nc5 {[%clk 0:02:18]} 16. Nxc5 {[%clk 0:01:49]}  Bxc5 {[%clk 0:02:19]} 17. Ne4 {[%clk 0:01:49]}  Rfe8 {[%clk 0:02:17]} 18. Qf3 {[%clk 0:01:46]}  Bd4 {[%clk 0:02:12]} 19. b3 {[%clk 0:01:15]}  f5 {[%clk 0:01:55]} 20. Nd6 {[%clk 0:01:08]}  Qc5 {[%clk 0:01:49]} 21. Nxe8 {[%clk 0:00:33]}  Qa3 {[%clk 0:01:40]} 22. c3 {[%clk 0:00:33]}  Qxb3+ {[%clk 0:01:40]} 23. Kc1 {[%clk 0:00:33]}  Nb4 {[%clk 0:01:32]} 0-1


[Site "https://www.chess.com"]

[Event "Titled Tuesday Blitz August 17 2021"]
[White "Lashkin, Jegor"]
[Black "Zakaryan_David"]
[WhiteFideId "13907808"]
[WhiteElo "2293"]
[BlackElo "2461"]
[Result "0-1"]
[Round "03"]
[TimeControl "180+1"]
[Date "2021.08.17"]
[WhiteClock "0:00:03"]
[BlackClock "0:00:20"]

1. d4 {[%clk 0:03:00]}  Nf6 {[%clk 0:02:59]} 2. c4 {[%clk 0:03:01]}  g6 {[%clk 0:02:59]} 3. Nc3 {[%clk 0:03:01]}  d5 {[%clk 0:02:59]} 4. Nf3 {[%clk 0:03:01]}  Bg7 {[%clk 0:02:58]} 5. Bg5 {[%clk 0:03:00]}  dxc4 {[%clk 0:02:59]} 6. e4 {[%clk 0:03:00]}  c5 {[%clk 0:02:59]} 7. Bxc4 {[%clk 0:02:58]}  cxd4 {[%clk 0:02:59]} 8. Nxd4 {[%clk 0:02:58]}  O-O {[%clk 0:02:56]} 9. e5 {[%clk 0:02:56]}  Ng4 {[%clk 0:02:49]} 10. Nd5 {[%clk 0:02:55]}  Nxe5 {[%clk 0:02:36]} 11. Bxe7 {[%clk 0:02:34]}  Qe8 {[%clk 0:01:48]} 12. Bb5 {[%clk 0:02:20]}  Bd7 {[%clk 0:01:46]} 13. Bxd7 {[%clk 0:02:06]}  Qxd7 {[%clk 0:01:45]} 14. Bxf8 {[%clk 0:02:03]}  Qxd5 {[%clk 0:01:44]} 15. Bxg7 {[%clk 0:01:59]}  Qxg2 {[%clk 0:01:43]} 16. Bxe5 {[%clk 0:01:28]}  Qxh1+ {[%clk 0:01:36]} 17. Kd2 {[%clk 0:01:28]}  Qd5 {[%clk 0:01:33]} 18. f4 {[%clk 0:01:18]}  Nc6 {[%clk 0:01:27]} 19. Qf3 {[%clk 0:01:11]}  Qa5+ {[%clk 0:01:22]} 20. Qc3 {[%clk 0:01:10]}  Nxe5 {[%clk 0:01:22]} 21. fxe5 {[%clk 0:01:03]}  Qxe5 {[%clk 0:01:23]} 22. Re1 {[%clk 0:00:47]}  Qxh2+ {[%clk 0:01:22]} 23. Re2 {[%clk 0:00:46]}  Qf4+ {[%clk 0:01:17]} 24. Qe3 {[%clk 0:00:45]}  Qc7 {[%clk 0:01:14]} 25. Ke1 {[%clk 0:00:35]}  Rd8 {[%clk 0:01:09]} 26. Kf1 {[%clk 0:00:34]}  Qc4 {[%clk 0:01:03]} 27. Nb3 {[%clk 0:00:19]}  Rd1+ {[%clk 0:01:02]} 28. Kf2 {[%clk 0:00:18]}  Qh4+ {[%clk 0:01:02]} 29. Kg2 {[%clk 0:00:08]}  Qh1+ {[%clk 0:01:01]} 30. Kg3 {[%clk 0:00:08]}  Rg1+ {[%clk 0:01:00]} 31. Kf4 {[%clk 0:00:08]}  Qh4+ {[%clk 0:00:54]} 32. Ke5 {[%clk 0:00:07]}  Rg5+ {[%clk 0:00:49]} 33. Kd6 {[%clk 0:00:06]}  Qb4+ {[%clk 0:00:48]} 34. Kc7 {[%clk 0:00:05]}  Rd5 {[%clk 0:00:39]} 35. Qe7 {[%clk 0:00:04]}  Qxe7+ {[%clk 0:00:34]} 36. Rxe7 {[%clk 0:00:03]}  h5 {[%clk 0:00:35]} 37. Re4 {[%clk 0:00:03]}  g5 {[%clk 0:00:34]} 38. Kxb7 {[%clk 0:00:03]}  h4 {[%clk 0:00:34]} 39. Nd4 {[%clk 0:00:01]}  h3 {[%clk 0:00:27]} 40. Nf3 {[%clk 0:00:01]}  f5 {[%clk 0:00:25]} 41. Re7 {[%clk 0:00:01]}  g4 {[%clk 0:00:24]} 42. Ng5 {[%clk 0:00:02]}  h2 {[%clk 0:00:22]} 43. Re1 {[%clk 0:00:02]}  g3 {[%clk 0:00:21]} 44. Nf3 {[%clk 0:00:03]}  f4 {[%clk 0:00:21]} 45. Rh1 {[%clk 0:00:02]}  Rd2 {[%clk 0:00:19]} 46. Nxd2 {[%clk 0:00:02]}  g2 {[%clk 0:00:20]} 47. Rxh2 {[%clk 0:00:03]}  g1=Q {[%clk 0:00:20]} 48. Re2 {[%clk 0:00:03]}  Qb6+ {[%clk 0:00:19]} 49. Ka8 {[%clk 0:00:03]}  Qc6+ {[%clk 0:00:20]} 50. Kb8 {[%clk 0:00:03]}  Qb5+ {[%clk 0:00:20]} 0-1


[Site "https://www.chess.com"]

[Event "Titled Tuesday Blitz August 17 2021"]
[White "Levitskiy, Andrey"]
[Black "Cunjalo, Faris"]
[WhiteFideId "14132885"]
[BlackFideId "14410710"]
[WhiteElo "2340"]
[BlackElo "2234"]
[Result "1-0"]
[Round "03"]
[TimeControl "180+1"]
[Date "2021.08.17"]
[WhiteClock "0:00:09"]
[BlackClock "0:00:14"]

1. e4 {[%clk 0:03:00]}  c6 {[%clk 0:02:44]} 2. Nf3 {[%clk 0:03:00]}  d5 {[%clk 0:02:44]} 3. exd5 {[%clk 0:03:01]}  cxd5 {[%clk 0:02:45]} 4. Ne5 {[%clk 0:03:01]}  Nd7 {[%clk 0:02:43]} 5. d4 {[%clk 0:02:56]}  Nxe5 {[%clk 0:02:42]} 6. dxe5 {[%clk 0:02:57]}  e6 {[%clk 0:02:41]} 7. Bd3 {[%clk 0:02:56]}  Ne7 {[%clk 0:02:40]} 8. O-O {[%clk 0:02:55]}  Nc6 {[%clk 0:02:40]} 9. f4 {[%clk 0:02:53]}  Be7 {[%clk 0:02:39]} 10. c3 {[%clk 0:02:44]}  g6 {[%clk 0:02:32]} 11. Be3 {[%clk 0:02:37]}  O-O {[%clk 0:02:25]} 12. Nd2 {[%clk 0:02:35]}  d4 {[%clk 0:02:15]} 13. cxd4 {[%clk 0:02:29]}  Nxd4 {[%clk 0:02:16]} 14. Ne4 {[%clk 0:02:21]}  Nf5 {[%clk 0:02:15]} 15. Bf2 {[%clk 0:02:17]}  Bd7 {[%clk 0:02:15]} 16. g4 {[%clk 0:02:05]}  Ng7 {[%clk 0:02:14]} 17. Qe2 {[%clk 0:01:38]}  Bc6 {[%clk 0:02:13]} 18. Rad1 {[%clk 0:01:37]}  Bxe4 {[%clk 0:01:43]} 19. Bxe4 {[%clk 0:01:35]}  Qa5 {[%clk 0:01:39]} 20. a3 {[%clk 0:01:05]}  Bc5 {[%clk 0:01:30]} 21. Bxb7 {[%clk 0:00:40]}  Rab8 {[%clk 0:01:28]} 22. Bg2 {[%clk 0:00:40]}  h5 {[%clk 0:01:21]} 23. h3 {[%clk 0:00:40]}  Rb3 {[%clk 0:01:15]} 24. Rd3 {[%clk 0:00:27]}  Rfb8 {[%clk 0:01:07]} 25. Rxb3 {[%clk 0:00:26]}  Rxb3 {[%clk 0:01:08]} 26. Qc2 {[%clk 0:00:20]}  Bxf2+ {[%clk 0:01:05]} 27. Rxf2 {[%clk 0:00:21]}  Qb6 {[%clk 0:01:04]} 28. Kh2 {[%clk 0:00:20]}  a5 {[%clk 0:00:53]} 29. Qd2 {[%clk 0:00:05]}  a4 {[%clk 0:00:48]} 30. Qe2 {[%clk 0:00:06]}  Qd4 {[%clk 0:00:42]} 31. Qd2 {[%clk 0:00:05]}  Qb6 {[%clk 0:00:39]} 32. Qe2 {[%clk 0:00:05]}  Kh7 {[%clk 0:00:37]} 33. Qd2 {[%clk 0:00:05]}  h4 {[%clk 0:00:35]} 34. Qe2 {[%clk 0:00:05]}  Kg8 {[%clk 0:00:18]} 35. Qd2 {[%clk 0:00:05]}  Kh7 {[%clk 0:00:19]} 36. Qe2 {[%clk 0:00:06]}  Qc5 {[%clk 0:00:19]} 37. Qd2 {[%clk 0:00:06]}  Ne8 {[%clk 0:00:20]} 38. Qe2 {[%clk 0:00:06]}  Nc7 {[%clk 0:00:20]} 39. Rf3 {[%clk 0:00:06]}  Rxf3 {[%clk 0:00:16]} 40. Qxf3 {[%clk 0:00:07]}  Nb5 {[%clk 0:00:17]} 41. Qe2 {[%clk 0:00:07]}  Nd4 {[%clk 0:00:17]} 42. Qe1 {[%clk 0:00:08]}  Qe7 {[%clk 0:00:10]} 43. Qf2 {[%clk 0:00:07]}  Nb3 {[%clk 0:00:09]} 44. Kh1 {[%clk 0:00:05]}  Kg7 {[%clk 0:00:08]} 45. f5 {[%clk 0:00:05]}  exf5 {[%clk 0:00:08]} 46. gxf5 {[%clk 0:00:06]}  Qxe5 {[%clk 0:00:08]} 47. fxg6 {[%clk 0:00:06]}  fxg6 {[%clk 0:00:09]} 48. Qxh4 {[%clk 0:00:06]}  Qxb2 {[%clk 0:00:09]} 49. Qe7+ {[%clk 0:00:06]}  Kh6 {[%clk 0:00:10]} 50. Qh4+ {[%clk 0:00:07]}  Kg7 {[%clk 0:00:11]} 51. Qe7+ {[%clk 0:00:08]}  Kg8 {[%clk 0:00:11]} 52. Bd5+ {[%clk 0:00:08]}  Kh8 {[%clk 0:00:12]} 53. Qf8+ {[%clk 0:00:08]}  Kh7 {[%clk 0:00:13]} 54. Bg8+ {[%clk 0:00:08]}  Kh8 {[%clk 0:00:14]} 55. Bf7+ {[%clk 0:00:08]}  Kh7 {[%clk 0:00:14]} 56. Qg8+ {[%clk 0:00:09]} 1-0


[Site "https://www.chess.com"]